Cogmind - Beta 14 @@@ ROGUE MODE // 2024.11.18 @ 21:00:59 Player: weirdfoe Result: Destroyed by D-53 Grenadier with Mini Grenade Launcher Performance ------------- Evolutions (0) 0 Regions Visited (2) 400 Robots Destroyed (1) 5 Value Destroyed (34) 34 Prototype IDs (0) 0 Alien Tech Used (0) 0 Bonus (0) 0 TOTAL SCORE: 439 Bonus ------- None Cogmind --------- Core Integrity 0/250 Matter 33/300 Energy 99/100 System Corruption 9% Temperature Cool (0) Movement Core (50) Location -10/Mines Parts ------- > --- POWER (1) -------- (None) > --- PROPULSION (2) --- (None) > --- UTILITY (2) ------ (None) > --- WEAPON (2) ------- (None) > --- INVENTORY (5) ---- Aluminum Leg Assault Rifle Grenade Launcher Mining Laser Peak State ------------ > --- POWER ------------ Ion Engine > --- PROPULSION ------- Wheel Compact Wheel > --- UTILITY ---------- Small Storage Unit Weapon Shielding > --- WEAPON ----------- Assault Rifle Rocket Launcher > --- INVENTORY -------- Light Treads Light Treads Aluminum Leg Small Laser Light Assault Rifle Grenade Launcher Mining Laser [Rating: 8] Favorites ----------- Power Ion Engine Engine Ion Engine Propulsion Wheel Treads Light Treads Wheel Wheel Utility Small Storage Unit Storage Small Storage Unit Protection Weapon Shielding Weapon Assault Rifle Energy Gun Small Laser Ballistic Gun Assault Rifle Launcher Rocket Launcher Build | -11 -10 -10 ------- Run | Yrd Mat Min Slots Evolved . | . . . Power . | . . . Propulsion . | . . . Utility . | . . . Weapon . | . . . Parts Attached 17 | 6 1 10 Power 2 | 1 . 1 Engine 2 | 1 . 1 Core . | . . . Reactor . | . . . Propulsion 4 | 2 . 2 Treads 2 | . . 2 Leg . | . . . Wheel 2 | 2 . . Hover . | . . . Flight . | . . . Utility 2 | 1 1 . Device . | . . . Storage 1 | 1 . . Processor . | . . . Hackware . | . . . Protection 1 | . 1 . Artifact . | . . . Weapon 9 | 2 . 7 Energy Gun 1 | . . 1 Energy Cannon . | . . . Ballistic Gun 5 | 2 . 3 Ballistic Cannon . | . . . Launcher 3 | . . 3 Special Weapon . | . . . Impact Weapon . | . . . Slashing Weapon . | . . . Piercing Weapon . | . . . Special Melee Weapon . | . . . Unidentified Prototypes . | . . . Parts Lost 5 | . . 5 Power 1 | . . 1 Propulsion 2 | . . 2 Utility 1 | . . 1 Weapon 1 | . . 1 Highest Loss Streak 4 | . . 4 To Critical Strikes . | . . . Average Slot Usage (%) 87 | . 87 86 Engine 14 | . 14 14 Treads 2 | . . 9 Wheel 23 | . 28 14 Storage 14 | . 14 14 Protection 3 | . 2 7 Ballistic Gun 24 | . 28 17 Launcher 1 | . . 6 Peak Build Rating 8 | 6 7 8 Average Rating 5 | 4 6 6 On Entrance 4 | . 6 7 Naked Turns 1 | . . 1 Heaviest Build 14 | 13 14 14 Greatest Support 40 | 26 26 40 Greatest Overweight (x) . | . . . Average Overweight (x) . | . . . Largest Inventory Capacity 8 | 8 8 8 Average Capacity 7 | 5 8 7 Most Carried 8 | 5 6 8 Average Carried 4 | 2 4 5 Final Capacity 8 | 8 8 5 Final Carried 6 | 4 6 4 Class Distribution -------------------- 100% | Mutant Dominant Class ---------------- Mutant | -10/Materials Mutant | -10/Mines Resources | -11 -10 -10 ----------- Run | Yrd Mat Min Matter Collected 276 | 231 45 . Remotely . | . . . Salvage Created 95 | . 38 57 Parts 2 | . 2 . Haulers Intercepted . | . . . Recyclers Shooed . | . . . Parts Field Recycled . | . . . Retrieved Matter . | . . . Parts Self-Destructed . | . . . Prevented . | . . . Kills | -11 -10 -10 ------- Run | Yrd Mat Min Combat Hostiles Destroyed 20 | . 1 19 Guns 1 | . 1 . AOE 19 | . . 19 Classes Destroyed 2 | . 1 1 Grunt 1 | . 1 . Assembled 19 | . . 19 Best Kill Streak 19 | . 1 19 Combat Bots Only 19 | . 1 19 Max Kills in Single Turn 6 | . 1 6 Gunslinging . | . . . Exploded 6 | . . 6 Melee . | . . . Uniques/NPCs Destroyed . | . . . Combat | -11 -10 -10 -------- Run | Yrd Mat Min Hostile Shots Fired 52 | . 2 50 Missed 18 | . . 18 Damage Taken 903 | . 21 882 Core 256 | . . 256 Absorbed by Shields . | . . . Redirected to Shielding 28 | . . 28 Core Remaining (%) 100 | 100 . . Volleys Fired 22 | . 4 18 Largest 2 | . 2 2 Hottest 40 | . 40 40 Shots Fired 29 | . 8 21 Gun 14 | . 8 6 Cannon . | . . . Launcher 15 | . . 15 Special . | . . . Kinetic 14 | . 8 6 Thermal . | . . . Explosive 15 | . . 15 Electromagnetic . | . . . Robot Hit Streak 6 | . 2 6 Robot Miss Streak 5 | . 5 3 Penetration Max . | . . . Secondary Targets . | . . . Shots Hit Robots 11 | . 2 9 Core Hits 35 | . 2 33 Critical Kills . | . . . Critical Parts Destroyed . | . . . Critical Strikes . | . . . Melee Attacks . | . . . Impact . | . . . Slashing . | . . . Piercing . | . . . Sneak Attacks . | . . . Combat Hostiles . | . . . Follow-up Attacks . | . . . Damage Inflicted 1100 | . 17 1083 Guns 57 | . 17 40 Cannons . | . . . Explosions 1043 | . . 1043 Melee . | . . . Ramming . | . . . Kinetic 57 | . 17 40 Thermal . | . . . Explosive 1043 | . . 1043 Electromagnetic . | . . . Impact . | . . . Slashing . | . . . Piercing . | . . . Highest Corruption 9 | . . 9 Average Corruption 8 | . . 8 Corruption Purged . | . . . Corruption Blocked . | . . . Effects 2 | . . 2 Matter Fused 1 | . . 1 Data Loss (minor) 1 | . . 1 Overload Shots . | . . . Overflow Damage 18 | . . 18 Projectiles . | . . . Explosions 18 | . . 18 Melee . | . . . Knockbacks . | . . . Impact . | . . . Kinetic . | . . . Secondary . | . . . Self-Inflicted Damage 109 | . . 109 Shots 5 | . . 5 Rammed . | . . . Targets Rammed . | . . . Kicked . | . . . Crushed . | . . . Highest Temperature 20 | . 6 20 Average Temperature 12 | . 6 14 Received Heat Transfer 92 | . 12 80 Siege Activations . | . . . Robots Corrupted . | . . . Combat Hostiles . | . . . Parts Fried . | . . . Impact Corruptions . | . . . Robots Melted . | . . . Combat Hostiles . | . . . Parts Melted . | . . . Heat Transferred . | . . . Parts Sabotaged . | . . . Parts Stolen . | . . . Parts Stripped . | . . . Power Chain Reactions . | . . . Alert | -11 -10 -10 ------- Run | Yrd Mat Min Peak Influence 68 | . 65 68 Initial 25 | . . 25 Average 30 | . 33 39 Maximum Alert Level . | . . . Low Security (%) 100 | 100 100 100 Level 1 . | . . . Level 2 . | . . . Level 3 . | . . . Level 4 . | . . . Level 5 . | . . . High Security . | . . . Max Security . | . . . Squads Dispatched 1 | . 1 . Investigation . | . . . Extermination . | . . . Reinforcement 1 | . 1 . Assault . | . . . Garrison . | . . . Intercept . | . . . Searches Triggered . | . . . Construction Impeded . | . . . Haulers Reinforced . | . . . Active Scanning Responses . | . . . Cargo Convoy Interrupts . | . . . Stealth | -11 -10 -10 --------- Run | Yrd Mat Min Distress Signals . | . . . Communications Jammed . | . . . Distress Signals . | . . . Times Spotted 26 | . 4 22 Peak Tracking Total 12 | . 3 12 Tactical Retreats . | . . . Traps | -11 -10 -10 ------- Run | Yrd Mat Min Traps Triggered . | . . . Indirectly . | . . . Trap Hack Attempts . | . . . Triggered . | . . . Disarmed . | . . . Reprogrammed . | . . . Reused . | . . . Traps Extracted . | . . . Installed . | . . . Triggered . | . . . Machines | -11 -10 -10 ---------- Run | Yrd Mat Min Machines Disabled . | . . . Max in Single Turn . | . . . Machines Repaired . | . . . Machines Dismantled . | . . . Machines Sabotaged . | . . . Overloaded Fab Kills . | . . . Hacking | -11 -10 -10 --------- Run | Yrd Mat Min Machines Accessed . | . . . Terminals . | . . . Fabricators . | . . . Repair Stations . | . . . Recycling Units . | . . . Scanalyzers . | . . . Garrison Access . | . . . Total Hacks . | . . . Successful . | . . . Failed . | . . . Catastrophic . | . . . Database Lockouts . | . . . Manual . | . . . Terminals . | . . . Fabricators . | . . . Repair Stations . | . . . Recycling Units . | . . . Scanalyzers . | . . . Garrison Access . | . . . Terminal Hacks . | . . . Fabricator Hacks . | . . . Repair Station Hacks . | . . . Recycling Unit Hacks . | . . . Scanalyzer . | . . . Garrison Access Hacks . | . . . Unauthorized Hacks . | . . . Terminals . | . . . Fabricators . | . . . Repair Stations . | . . . Recycling Units . | . . . Scanalyzers . | . . . Garrison Access . | . . . Data Cores Recovered . | . . . Used . | . . . Hacking Detections . | . . . Full Trace Events . | . . . Feedback Events . | . . . Feedback Blocked . | . . . Robot Schematics Acquired . | . . . Robots Built . | . . . Authchips . | . . . Time . | . . . Total Robot Build Rating . | . . . Part Schematics Acquired . | . . . Parts Built . | . . . Authchips . | . . . Time . | . . . Total Part Build Rating . | . . . Parts Repaired . | . . . Time . | . . . Parts Recycled . | . . . Recycled Matter . | . . . Retrieved Matter . | . . . Retrieved Components . | . . . Parts Scanalyzed . | . . . Part Schematics Acquired . | . . . Parts Damaged . | . . . Bothacking | -11 -10 -10 ------------ Run | Yrd Mat Min Used RIF Installer . | . . . Robots Hacked . | . . . Non-combat . | . . . Combat . | . . . Robot Hacks Applied . | . . . Relay Couplers Released . | . . . Fabnet Peak Effective % . | . . . Robots Rewired . | . . . Allies Hacked . | . . . Hacks Repelled . | . . . Allies | -11 -10 -10 -------- Run | Yrd Mat Min Total Allies . | . . . Largest Group . | . . . Highest-Rated Group . | . . . Highest-Rated Ally . | . . . Total Orders . | . . . Ally Attacks . | . . . Total Damage . | . . . Kills . | . . . Allies Corrupted . | . . . Allies Melted . | . . . Intel | -11 -10 -10 ------- Run | Yrd Mat Min Robot Analysis Total . | . . . Derelict Logs Recovered . | . . . Drone Launches . | . . . Drone Recoveries . | . . . Exploration | -11 -10 -10 ------------- Run | Yrd Mat Min Turns Passed 346 | 50 201 95 Spaces Moved 281 | 43 202 36 Core 6 | 3 . 3 Treads 9 | . . 9 Legs . | . . . Wheels 266 | 40 202 24 Hover . | . . . Flight . | . . . Fastest Speed 50 | 50 90 50 Average Speed 91 | 85 90 104 Slowest Speed 160 | 90 90 160 Overloaded Moves . | . . . Propulsion Burnouts . | . . . Robots Hopped . | . . . Cave-ins Triggered . | . . . Exploration Rate (%) 21 | 3 45 16 Regions Visited 2 Branch Regions 1 Pre-discovered Areas . | . . . Known Exits Taken . | . . . Unknown Exits Taken 2 | 1 1 . Scrap Searched . | . . . Spaces Dug . | . . . Terrain Destroyed 106 | . . 106 Melee . | . . . Projectile . | . . . AOE 106 | . . 106 Terrain Rammed . | . . . Walls Destroyed . | . . . Machines Disabled . | . . . Actions | -11 -10 -10 --------- Run | Yrd Mat Min Total 337 | 53 213 71 Wait 9 | . 5 4 Move 279 | 42 201 36 Hop . | . . . Pick Up 8 | 5 2 1 Fast Attach 6 | 5 1 . Attach 5 | 1 . 4 Detach 1 | . . 1 Swap 6 | . . 6 Drop 1 | . . 1 Fire 22 | . 4 18 Melee . | . . . Ram . | . . . Kick . | . . . Crush . | . . . Escape Stasis . | . . . Rewire . | . . . Trap . | . . . Miscellaneous . | . . . Route ------- -11/Scrapyard -10/Materials (discovered 2 exits: [*Mat] / [*Min]) -10/Mines History --------- Turn | Location | Event 12 | -11/Scrapyard | Discovered new exit (range 16) 51 | -11/Scrapyard | Entered Materials 190 | -10/Materials | Discovered new exit (range 10) 237 | -10/Materials | Discovered new exit (range 11) 252 | -10/Materials | Entered Mines 253 | -10/Mines | Assembled infested the area 266 | -10/Mines | Received a Rocket Launcher from a helpful Derelict 336 | -10/Mines | Destroyed 19 combat bots 341 | -10/Mines | Lost 4 parts (2n1u1w) 341 | -10/Mines | Core integrity fell below 50% 346 | -10/Mines | Released all parts (5) 347 | -10/Mines | Core integrity fell below 20% 347 | -10/Mines | Destroyed by D-53 Grenadier with Mini Grenade Launcher Last Messages --------------- 00317_ The unstable cave ceiling collapses. 00325_ K-01 Serf collects debris. 00328_ System corrupted: Matter fused (-10). 00328_ Dropped Ion Engine. 00329_ K-01 Serf collects debris. 00333_ The unstable cave ceiling collapses. 00334_ K-01 Serf collects debris. 00337_ C-30 ARC bursts open, deploying its payload. 00337_ D-53 Grenadier unfolds itself. 00338_ K-01 Serf collects debris. 00340_ The unstable cave ceiling collapses. 00340_ K-01 Serf destroyed. 00343_ The unstable cave ceiling collapses. 00345_ Lgt. Ion Engine destroyed. 00345_ U-05 Engineer builds a Wall. 00346_ Released Sml. Laser. 00346_ Released Sml. Storage Unit. 00346_ Released Lgt. Treads. 00346_ Released Rocket Launcher. 00347_ The unstable cave ceiling collapses. Map ----- +----------------------------------------------------+ | ??????????????????????????????????????????????? | | ??????????????????????????????????????????????? | | ??????????????????????????????????????????????? | | ??????????????????????????????????????????????? | | ??????????????????????????????????????????????? | | ??????????????????????????????????????????????? | | ??????????????????????????????????????????????? | | ??????????????????????????????????????????????? | | ??????????????????????????????????????????????? | | ??????????????????????????????????????????????? | | ??????????????????????????????????????????????? | | ??????????????????????????????????????????????? | | ??????????????? ??????????????????????????????? | | ????????????? ?????????????????????????????? | | ????????????? ?????????????????????????????? | | ?????????????? ????????????????????????????? | | ??????????????# #??######?????? ?????????? | | ??????????????# #### # ???### ?????????? | | ?????????????## ## # #?? % #?????????? | | ?????????????# #?? #????????? | | ?????????????# ### #????????? | | ?????????????# # d #????????? | | ?????????????# ## d #????????? | | ??????????????# # #?????????? | | ???????????????# #?????????? | | ??????????????????# @ #?????????????? | | ??????????????????# #?????????????? | | ???############???## ] ##?????????????? | | ???# #???## ! = ##?????????????? | | ???# #??## = ##??????????????? | | ???# #??# #???????????????? | | ???# """ """ #??# ##???????????????? | | ???# """ """ #### ##????????????????? | | ???# """ """ #?????????????????? | | ???# ### ####?????????????????? | | ???# #?## #????????????????????? | | ???############??## #????????????????????? | | ??????????????????## ##????????????????????? | | ???????????????????######?????????????????????? | | ??????????????????????????????????????????????? | | ??????????????????????????????????????????????? | | ??????????????????????????????????????????????? | | | | | | | | | | | | | | | | | +----------------------------------------------------+ Best States ------------- Heat Dissipation 25 Energy Generation 10 Energy Capacity 250 Matter Stores 300 Matter Capacity 300 Sight Range 16 Terrain Scan Density 10 Weapon Shielding 33 Evasion (%) 44 Recoil Reduction 2 Item Schematics ----------------- None Robot Schematics ------------------ None Fabricated ------------ Nothing Alien Tech Used ----------------- None Achievements -------------- None Challenges ------------ None Game ------ Seed PoweredUtilityBooster Manual? 0 Play Time 00:07:53 Cumulative 45.5 hours Start 2024.11.18 @ 20:53:28 End 2024.11.18 @ 21:00:59 Sessions 1 Manual Loads 0 Difficulty Rogue Special Mode None Game No. 123 Rogue 123 Adventurer 0 Explorer 0 Win Type - Total 0 Types 0/0/0/0/0/0/0/0/0 Lore% 19 Gallery% 37 Achievement% 27 Wizard Run 0 Options --------- Layout 0 ASCII 0 Keyboard 0 Movement Numpad Keybinds 0 Fullscreen 1 Font 24/Smallcaps Map View 76x50 Zoom Use 0% Tactical HUD 1 Map Filters NONE Filters NONE Steam 1 RUN: 56e87395-589e-4432-831c-04d7f62f0f8f